Cogmind - Beta 16 @@@ ROGUE MODE // 2025.10.26 @ 11:31:22 Player: KeKe Result: Destroyed by Y-45 Defender with Heavy Assault Rifle Performance ------------- Evolutions (2) 1000 Regions Visited (3) 600 Robots Destroyed (44) 220 Value Destroyed (999) 999 Prototype IDs (0) 0 Alien Tech Used (0) 0 Bonus (-112) -112 TOTAL SCORE: 2707 Bonus ------- Friendly Fire -112 Cogmind --------- Core Integrity 0/550 Matter 300/300 Energy 100/100 System Corruption 8% Temperature Cool (9) Movement Core (50) Location -8/Materials Parts ------- > --- POWER (1) -------- (None) > --- PROPULSION (2) --- (None) > --- UTILITY (6) ------ (None) > --- WEAPON (2) ------- Katana > --- INVENTORY (5) ---- Small Storage Unit Improved Terrain Scanner Small Laser Assault Rifle Light Assault Rifle Peak State ------------ > --- POWER ------------ Light Ion Engine > --- PROPULSION ------- Compact Wheel Compact Wheel > --- UTILITY ---------- Huge Storage Unit Improved Terrain Scanner > --- WEAPON ----------- Assault Rifle Grenade Launcher > --- INVENTORY -------- Light Ion Engine Wheel Wheel Small Storage Unit EM Pulse Gun Small Laser Mining Laser [Rating: 9] Favorites ----------- Power Light Ion Engine Engine Light Ion Engine Propulsion Wheel Leg Aluminum Leg Wheel Wheel Utility Huge Storage Unit Device Improved Terrain Scanner Storage Huge Storage Unit Protection Light Armor Plating Weapon Assault Rifle Energy Gun Small Laser Energy Cannon Beam Cannon Ballistic Gun Assault Rifle Launcher Grenade Launcher Special Weapon Mining Laser Slashing Weapon Katana Build | -11 -10 -10 -8 ------- Run | Yrd Mat Sub Mat Slots Evolved 4 | . . . 4 Power . | . . . . Propulsion . | . . . . Utility 4 | . . . 4 Weapon . | . . . . Parts Attached 21 | 3 14 1 3 Power 1 | . 1 . . Engine 1 | . 1 . . Core . | . . . . Reactor . | . . . . Propulsion 7 | 2 4 1 . Treads . | . . . . Leg . | . . . . Wheel 7 | 2 4 1 . Hover . | . . . . Flight . | . . . . Utility 6 | 1 4 . 1 Device 2 | 1 1 . . Storage 1 | . 1 . . Processor . | . . . . Hackware . | . . . . Protection 3 | . 2 . 1 Artifact . | . . . . Weapon 7 | . 5 . 2 Energy Gun 2 | . 2 . . Energy Cannon 1 | . 1 . . Ballistic Gun 1 | . 1 . . Ballistic Cannon . | . . . . Launcher 1 | . 1 . . Special Weapon 1 | . . . 1 Impact Weapon . | . . . . Slashing Weapon 1 | . . . 1 Piercing Weapon . | . . . . Special Melee Weapon . | . . . . Unidentified Prototypes . | . . . . Parts Lost 17 | . 9 1 7 Power 2 | . 1 . 1 Propulsion 7 | . 4 1 2 Utility 4 | . 2 . 2 Weapon 4 | . 2 . 2 Highest Loss Streak 6 | . 4 1 6 To Critical Strikes . | . . . . Average Backups 6 | 4 7 7 5 Power . | 1 . 1 . Propulsion 1 | 1 1 . . Utility 1 | . 1 2 2 Weapon 3 | 1 3 4 3 Tool/Special . | . . . . Unused Backups 4 | . 1 . 3 Power 1 | . . . 1 Propulsion . | . . . . Utility 1 | . . . 1 Weapon 2 | . 1 . 1 Tool/Special . | . . . . Average Slot Usage (%) 94 | . 99 99 24 Engine 13 | . 14 14 1 Wheel 26 | . 28 27 4 Device 6 | . 6 9 . Storage 13 | . 14 14 3 Protection 6 | . 6 4 4 Energy Gun 7 | . 8 . . Energy Cannon 5 | . 4 14 2 Ballistic Gun 13 | . 14 14 1 Peak Build Rating 9 | 7 9 9 7 Average Rating 7 | 6 8 8 3 On Entrance 7 | 6 7 8 7 Avg Prop Armor Cover (%) . | . . . . Naked Turns 5 | . . . 5 Heaviest Build 91 | 13 91 91 91 Greatest Support 32 | 32 32 26 26 Greatest Overweight (x) 26 | . 5 9 26 Average Overweight (x) 2 | . 3 3 1 Largest Inventory Capacity 25 | 8 25 25 25 Average Capacity 23 | 8 24 25 13 Most Carried 10 | 7 10 8 7 Average Carried 6 | 4 7 7 5 Final Capacity 25 | 8 25 25 5 Final Carried 8 | 6 8 7 5 Class Distribution -------------------- 100% | Mutant Dominant Class ---------------- Mutant | -10/Materials Mutant | -10/Subcaves Mutant | -8/Materials Resources | -11 -10 -10 -8 ----------- Run | Yrd Mat Sub Mat Matter Collected 725 | 269 390 39 27 Remotely . | . . . . Salvage Created 1487 | 228 863 70 326 Parts 99 | 25 50 5 19 Haulers Intercepted 2 | . 2 . . Recyclers Shooed 1 | . 1 . . Parts Field Recycled . | . . . . Retrieved Matter . | . . . . Parts Self-Destructed . | . . . . Prevented . | . . . . Parts Restored . | . . . . Kills | -11 -10 -10 -8 ------- Run | Yrd Mat Sub Mat Combat Hostiles Destroyed 27 | . 20 1 6 Melee 6 | . . . 6 Guns 11 | . 10 1 . Cannons 6 | . 6 . . AOE 4 | . 4 . . Classes Destroyed 12 | 3 5 2 2 Worker 2 | 2 . . . Builder 1 | . 1 . . Tunneler 5 | 5 . . . Hauler 2 | . 2 . . Recycler 3 | 1 2 . . Operator 1 | . . . 1 Watcher 3 | . 3 . . Swarmer 9 | . 9 . . Grunt 16 | . 11 . 5 Brawler 1 | . . . 1 Subdweller 1 | . . 1 . Scientist 1 | . . 1 . Best Kill Streak 7 | 4 6 1 7 Combat Bots Only 6 | . 6 1 3 Max Kills in Single Turn 2 | 1 2 1 1 Gunslinging 1 | . 1 . . Exploded 1 | . 1 . . Melee 1 | . . . 1 Uniques/NPCs Destroyed . | . . . . Combat | -11 -10 -10 -8 -------- Run | Yrd Mat Sub Mat Hostile Shots Fired 187 | . 98 6 83 Missed 54 | . 29 3 22 Hits 133 | . 69 3 61 Melee 9 | . . . 9 Projectile 124 | . 69 3 52 Critical Strikes 3 | . 1 . 2 Damage Taken 2036 | . 932 77 1027 Core 788 | . 235 . 553 Absorbed by Shields . | . . . . Core Remaining (%) 53 | 100 . 6 . Volleys Fired 98 | 13 74 8 3 Largest 2 | 2 2 2 2 Hottest 100 | 60 80 80 100 Shots Fired 184 | 26 138 16 4 Gun 140 | 26 105 8 1 Cannon 40 | . 31 8 1 Launcher 2 | . 2 . . Special 2 | . . . 2 Kinetic 97 | 13 75 8 1 Thermal 67 | . 56 8 3 Explosive 2 | . 2 . . Electromagnetic 18 | 13 5 . . Robot Hit Streak 10 | 5 7 10 1 Robot Miss Streak 5 | 1 5 1 1 Penetration Max . | . . . . Secondary Targets 2 | . 2 . . Max Gunslinging Chain 1 | . 1 . . Shots Hit Robots 116 | 12 75 14 15 Core Hits 56 | 8 38 4 6 Critical Kills . | . . . . Critical Parts Destroyed . | . . . . Critical Strikes 3 | 2 . . 1 Corrupt 2 | 2 . . . Sever 1 | . . . 1 Melee Attacks 15 | . . . 15 Impact . | . . . . Slashing 15 | . . . 15 Piercing . | . . . . Sneak Attacks 1 | . . . 1 Combat Hostiles . | . . . . Follow-up Attacks . | . . . . Damage Inflicted 2189 | 153 1336 210 490 Guns 976 | 153 721 87 15 Cannons 438 | . 315 123 . Explosions 300 | . 300 . . Melee 451 | . . . 451 Ramming . | . . . . Kinetic 640 | 39 499 87 15 Thermal 806 | . 659 123 24 Explosive 133 | . 133 . . Electromagnetic 159 | 114 45 . . Impact . | . . . . Slashing 451 | . . . 451 Piercing . | . . . . Highest Corruption 8 | . . . 8 Average Corruption 7 | . . . 7 Corruption Purged . | . . . . Corruption Blocked . | . . . . Effects 2 | . . . 2 Message Errors 1 | . . . 1 Matter Fused 1 | . . . 1 Overload Shots . | . . . . Overflow Damage 192 | . 134 . 58 Projectiles . | . . . . Explosions 134 | . 134 . . Melee 58 | . . . 58 Knockbacks . | . . . . Impact . | . . . . Kinetic . | . . . . Secondary . | . . . . Self-Inflicted Damage 257 | . 257 . . Shots 4 | . 4 . . Rammed . | . . . . Targets Rammed . | . . . . Kicked . | . . . . Crushed . | . . . . Highest Temperature 154 | . 154 . 24 Average Temperature 35 | . 36 . 14 Received Heat Transfer 654 | . 186 18 450 Siege Activations . | . . . . Martial Activations . | . . . . Shielding Activations . | . . . . Robots Disrupted . | . . . . Combat Hostiles . | . . . . Robots Corrupted . | . . . . Combat Hostiles . | . . . . Parts Fried . | . . . . Impact Corruptions . | . . . . Robots Melted . | . . . . Combat Hostiles . | . . . . Parts Melted 2 | . 2 . . Heat Transferred 1525 | . 1216 259 50 Parts Sabotaged . | . . . . Parts Stolen . | . . . . Parts Stripped . | . . . . Power Chain Reactions 1 | . 1 . . Alert | -11 -10 -10 -8 ------- Run | Yrd Mat Sub Mat Maximum Alert Level . | . . . . Low Security (%) 100 | 100 100 . 100 Level 1 . | . . . . Level 2 . | . . . . Level 3 . | . . . . Level 4 . | . . . . Level 5 . | . . . . High Security . | . . . . Max Security . | . . . . Peak Influence 177 | 20 177 . 115 Initial 6 | . 6 . . Average 65 | 5 72 . 35 Influence Increases 909 | 40 724 . 145 Destroy 0b10 Robot/C 520 | . 400 . 120 Destroy 0b10 Robot/NC 85 | 40 40 . 5 Destroy Leader 130 | . 110 . 20 Disable Machine 105 | . 105 . . Destroy Structure 69 | . 69 . . Influence Decreases 804 | 30 583 151 40 Entered New Map 77 | . 4 73 . Time Decay 627 | 30 489 78 30 Lost Part 100 | . 90 . 10 Squads Dispatched 8 | . 5 . 3 Investigation 3 | . 2 . 1 Extermination . | . . . . Reinforcement 5 | . 3 . 2 Assault . | . . . . Garrison . | . . . . Intercept . | . . . . Searches Triggered . | . . . . Construction Impeded . | . . . . Haulers Reinforced . | . . . . Active Scanning Responses . | . . . . Cargo Convoy Interrupts . | . . . . Stealth | -11 -10 -10 -8 --------- Run | Yrd Mat Sub Mat Distress Signals . | . . . . Communications Jammed . | . . . . Distress Signals . | . . . . Times Spotted 45 | . 36 1 8 Peak Tracking Total 4 | . 3 1 4 Tactical Retreats . | . . . . Traps | -11 -10 -10 -8 ------- Run | Yrd Mat Sub Mat Traps Triggered 3 | . 3 . . Indirectly . | . . . . Trap Hack Attempts . | . . . . Triggered . | . . . . Disarmed . | . . . . Reprogrammed . | . . . . Reused . | . . . . Traps Extracted . | . . . . Installed . | . . . . Triggered . | . . . . Machines | -11 -10 -10 -8 ---------- Run | Yrd Mat Sub Mat Machines Disabled 7 | . 7 . . Max in Single Turn 4 | . 4 . . Machines Repaired . | . . . . Machines Dismantled . | . . . . Machines Sabotaged . | . . . . Overloaded Fab Kills . | . . . . Hacking | -11 -10 -10 -8 --------- Run | Yrd Mat Sub Mat Machines Accessed 3 | . 2 . 1 Terminals 2 | . 1 . 1 Fabricators . | . . . . Repair Stations . | . . . . Recycling Units 1 | . 1 . . Scanalyzers . | . . . . Garrison Access . | . . . . Total Hacks 6 | . 4 . 2 Successful 1 | . 1 . . Failed 5 | . 3 . 2 Catastrophic 1 | . . . 1 Database Lockouts . | . . . . Manual 5 | . 3 . 2 Terminals 5 | . 3 . 2 Fabricators . | . . . . Repair Stations . | . . . . Recycling Units 1 | . 1 . . Scanalyzers . | . . . . Garrison Access . | . . . . Terminal Hacks . | . . . . Fabricator Hacks . | . . . . Repair Station Hacks . | . . . . Recycling Unit Hacks 1 | . 1 . . Retrieve Components 1 | . 1 . . Scanalyzer . | . . . . Garrison Access Hacks . | . . . . Unauthorized Hacks . | . . . . Terminals . | . . . . Fabricators . | . . . . Repair Stations . | . . . . Recycling Units . | . . . . Scanalyzers . | . . . . Garrison Access . | . . . . Data Cores Recovered . | . . . . Used . | . . . . Hacking Detections 2 | . 1 . 1 Full Trace Events 1 | . . . 1 Feedback Events . | . . . . Feedback Blocked . | . . . . Robot Schematics Acquired . | . . . . Robots Built . | . . . . Authchips . | . . . . Time . | . . . . Total Robot Build Rating . | . . . . Part Schematics Acquired . | . . . . Parts Built . | . . . . Authchips . | . . . . Time . | . . . . Total Part Build Rating . | . . . . Part Studies Acquired . | . . . . Parts Repaired . | . . . . Time . | . . . . Parts Recycled . | . . . . Recycled Matter . | . . . . Retrieved Matter . | . . . . Retrieved Components 10 | . 10 . . Parts Scanalyzed . | . . . . Part Schematics Acquired . | . . . . Parts Damaged . | . . . . Bothacking | -11 -10 -10 -8 ------------ Run | Yrd Mat Sub Mat Used RIF Installer . | . . . . Robots Hacked . | . . . . Non-combat . | . . . . Combat . | . . . . Robot Hacks Applied . | . . . . Relay Couplers Released . | . . . . Fabnet Peak Effective % . | . . . . Robots Rewired . | . . . . Allies Hacked . | . . . . Hacks Repelled . | . . . . Allies | -11 -10 -10 -8 -------- Run | Yrd Mat Sub Mat Total Allies . | . . . . Largest Group . | . . . . Highest-Rated Group . | . . . . Highest-Rated Ally . | . . . . Total Orders . | . . . . Ally Attacks . | . . . . Total Damage . | . . . . Kills . | . . . . Allies Corrupted . | . . . . Allies Melted . | . . . . Intel | -11 -10 -10 -8 ------- Run | Yrd Mat Sub Mat Active Infowar (turns) 893 | 19 716 158 . Terrain 809 | . 651 158 . Seismic 84 | 19 65 . . Robot Analysis Total . | . . . . Derelict Logs Recovered . | . . . . Drone Launches . | . . . . Drone Recoveries . | . . . . Exploration | -11 -10 -10 -8 ------------- Run | Yrd Mat Sub Mat Turns Passed 1939 | 115 1485 229 110 Spaces Moved 987 | 66 726 144 51 Core 38 | . . . 38 Treads . | . . . . Legs 4 | 4 . . . Wheels 945 | 62 726 144 13 Hover . | . . . . Flight . | . . . . Fastest Speed 50 | 100 100 135 50 Average Speed 131 | 101 134 140 110 Slowest Speed 1350 | 120 175 215 1350 Overloaded Moves . | . . . . Propulsion Burnouts . | . . . . Robots Hopped . | . . . . Potential Cave-ins . | . . . . Cave-ins Triggered . | . . . . Exploration Rate (%) 30 | 4 96 14 9 Regions Visited 3 Branch Regions 1 Pre-discovered Areas . | . . . . Known Exits Taken . | . . . . Unknown Exits Taken 3 | 1 1 1 . Scrap Searched . | . . . . Spaces Dug . | . . . . Terrain Destroyed 64 | . 64 . . Melee . | . . . . Projectile . | . . . . AOE 64 | . 64 . . Terrain Rammed . | . . . . Walls Destroyed . | . . . . Machines Disabled . | . . . . Actions | -11 -10 -10 -8 --------- Run | Yrd Mat Sub Mat Total 1408 | 89 1092 154 73 Wait 265 | . 265 . . Move 984 | 65 725 143 51 Hop . | . . . . Pick Up 13 | 4 9 . . Fast Attach 5 | 1 2 . 2 Attach 12 | 2 9 1 . Detach . | . . . . Swap 11 | . 8 2 1 Drop 5 | 4 . . 1 Fire 98 | 13 74 8 3 Melee 15 | . . . 15 Ram . | . . . . Kick . | . . . . Crush . | . . . . Escape Stasis . | . . . . Rewire . | . . . . Trap . | . . . . Miscellaneous . | . . . . Route ------- -11/Scrapyard -10/Materials (discovered 6 exits: [*Mat x3] / [*Min x2] / [*Sub]) -10/Subcaves -8/Materials History --------- Turn | Location | Event 14 | -11/Scrapyard | Discovered new exit (range 3) 116 | -11/Scrapyard | Entered Materials 305 | -10/Materials | Build established: Mutant 337 | -10/Materials | Discovered new exit (range 15) 376 | -10/Materials | Lost 4 parts (1p2n1w) 655 | -10/Materials | Discovered new exit (range 11) 861 | -10/Materials | Discovered new exit (range 16) 1011 | -10/Materials | Discovered new exit (range 3) 1026 | -10/Materials | Discovered new exit (range 16) 1120 | -10/Materials | Core integrity fell below 50% 1249 | -10/Materials | Core integrity fell below 20% 1586 | -10/Materials | Discovered new exit (range 11) 1601 | -10/Materials | Entered Subcaves 1602 | -10/Subcaves | Approached by a straggling Scientist 1799 | -10/Subcaves | Discovered new exit (range 12) 1830 | -10/Subcaves | Entered Materials 1830 | -8/Materials | Evolved 4 slots: Utility x4 1882 | -8/Materials | Core integrity fell below 50% 1891 | -8/Materials | Lost 6 parts (1p2n1u2w) 1932 | -8/Materials | Core integrity fell below 20% 1940 | -8/Materials | Destroyed by Y-45 Defender with Heavy Assault Rifle Last Messages --------------- 01884_ U-05 Engineer works on Matter Pump. 01884_ G-47 Trooper destroyed. 01887_ K-01 Serf collects debris. 01889_ ALERT: Hostile activity reported, dispatching reinforcements to area. 01889_ U-05 Engineer works on Matter Pump. 01894_ B-36 Bruiser destroyed. 01895_ U-05 Engineer completes Matter Pump. 01897_ Acquired 10 matter. 01899_ Acquired Lgt. Armor Plating. 01903_ System corrupted: Matter fused (-9). 01903_ Sneak attack on O-16 Technician. 01903_ Destroyed Hover Unit. 01903_ O-16 Technician destroyed. 01904_ Matter Pump comes online. 01906_ Acquired 17 matter. 01917_ G-47 Trooper Imp. Heat Sink severed. 01917_ Lgt. Armor Plating destroyed. 01919_ G-47 Trooper destroyed. 01934_ K-01 Serf collects debris. Map ----- +----------------------------------------------------+ | ?????????????????????????????????????????????????? | | ?????????????????????????????????????????????????? | | ?????????????????????????????????????????????????? | | ?????????????????????????????????????????????????? | | ?????????????????????????????????????????????????? | | ?????????????????????????????????????????????????? | | ?????????????????????????????????????????????????? | | ?????????????????????????????????????????????????? | | ?????????????????????????????????????????????????? | | ?????????????????????????????????????????????????? | | ?????????????????????????????????????????????????? | | ?????????????????????????????????????????????????? | | ?????????????????????????????????????????????????? | | ?????????????????????????????????????????????????? | | ?????????????????????????????????????????????????? | | ?????????????????????????????????????????????????? | | ?????????????????????????????????????????????????? | | ?????????????????????????????????????????????????? | | ??????????????????????######?????????????????????? | | ?????????????????????? #?????????????????????? | | ??????????????????????? #?????????????????????? | | ??????????????????????? #?????????????????????? | | ???????????????????????# k +?????????????????????? | | ???????????????????????# #?????????????????????? | | ???????????????????????# Y#?????????????????????? | | ???????????????????????# @ #?????????????????????? | | ???????????????????????# #?????????????????????? | | ???????????????????????# #?????????????????????? | | ???????????????????????# #?????????????????????? | | ???????????????????????# = #?????????????????????? | | ???????????????????????#*%[#?????????????????????? | | ???????????????????????#=!!#?????????????????????? | | ???????????????????????#%!%#?????????????????????? | | ???????????????????????#u==#?????????????????????? | | ???????????????????????# #?????????????????????? | | ???????????????#####???# k#?????????????????????? | | ??????????????##!!!!##?# +?????????????????????? | | ??????????????#! !#?# #?????????????????????? | | ??????????????# #?# #?????????????????????? | | ????????####### ### #??########???????????? | | ???????? #??# #???????????? | | ??????? #??#""" #???????????? | | ??????? """ #??#"R #???????????? | | ?????????# "T" *#??#""" #???????????? | | ?????????# ! #??# #???????????? | | ????????????""" """ %[ [#??# [#???????????? | | ??????????? """ """ =*%=*!#######+####??????????? | | ?????????# """ """ *= #??????????? | | ?????????# %= #??????????? | | ?????????# ! #??????????? | +----------------------------------------------------+ Best States ------------- Heat Dissipation 31 Energy Generation 10 Energy Capacity 125 Matter Stores 300 Matter Capacity 300 Sight Range 16 Terrain Scan Range 16 Terrain Scan Density 10 Armor Coverage 150 Evasion (%) 50 Item Schematics ----------------- None Robot Schematics ------------------ None Fabricated ------------ Nothing Repaired ---------- Nothing Studied --------- None Alien Tech Used ----------------- None Achievements -------------- Ghost 'Em Challenges ------------ None Game ------ Seed AmuletSixFilter Manual? 0 Play Time 00:17:03 Cumulative 127.5 hours Start 2025.10.26 @ 11:15:17 End 2025.10.26 @ 11:31:22 Sessions 1 Manual Loads 0 Difficulty Rogue Special Mode None Game No. 125 Rogue 125 Adventurer 0 Explorer 0 Win Type - Total 1 Types 1/0/0/0/0/0/0/0/0/0 Lore% 61 Gallery% 51 Achievement% 34 Wizard Run 0 Options --------- Layout 0 ASCII 0 Keyboard 0 Movement Mouse Keybinds 0 Fullscreen 2 Font 18/X11 Map View 76x50 Zoom Use 0% Tactical HUD 1 Map Filters NONE Filters NONE Steam 1 RUN: c2ee0fbf-634d-4a8a-a0aa-2784feda70ff